Cogmind - Beta 17 @@@ ROGUE MODE // 2026.07.23 @ 20:59:30 Player: Cinder Result: Self-destructed Performance ------------- Evolutions (2) 1000 Regions Visited (5) 1000 Robots Destroyed (32) 160 Value Destroyed (450) 450 Prototype IDs (23) 460 Alien Tech Used (0) 0 Bonus (327) 327 TOTAL SCORE: 3397 Bonus ------- Follower Combat Kills 27 Aligned with FarCom 300 Cogmind --------- Core Integrity 448/550 Matter 290/300 Energy 125/125 System Corruption 0% Temperature Cool (0) Movement Rolling (155) Ox5 Location -8/Materials Parts ------- > --- POWER (1) -------- Light Ion Engine > --- PROPULSION (4) --- Wheel Wheel Wheel Wheel > --- UTILITY (3) ------ Humpback > --- WEAPON (3) ------- EM Shotgun > --- INVENTORY (35) --- Light Ion Engine Light Ion Engine Light Deuterium Engine Heat Sink Humpback High-capacity Matter Pod (200) Visual Processing Unit Seismic Detector Medium Armor Plating Reactive Plating EM Pulse Gun EM Pulse Gun Beam Cannon Beam Cannon Rocket Launcher Rocket Launcher Rocket Launcher Rocket Launcher Peak State ------------ > --- POWER ------------ Light Ion Engine > --- PROPULSION ------- Wheel Wheel Wheel Wheel > --- UTILITY ---------- Humpback Cloak of Protection > --- WEAPON ----------- EM Shotgun EM Shotgun EM Shotgun > --- INVENTORY -------- Light Ion Engine Light Ion Engine Wheel Wheel Heat Sink Humpback High-capacity Matter Pod Visual Processing Unit Seismic Detector Medium Armor Plating Reactive Plating EM Pulse Gun EM Pulse Gun EM Shotgun Beam Cannon Beam Cannon Rocket Launcher Rocket Launcher Rocket Launcher Rocket Launcher [Rating: 24] Favorites ----------- Power Light Ion Engine Engine Light Ion Engine Propulsion Wheel Wheel Wheel Utility High-capacity Storage Unit Device Heat Sink Storage High-capacity Storage Unit Weapon Beam Cannon Energy Gun Small Laser Energy Cannon Beam Cannon Build | -11 -10 -10 -10 -9 -8 ------- Run | Yrd Mat Min Exi Min Mat Slots Evolved 4 | . . . . . 4 Power . | . . . . . . Propulsion 2 | . . . . . 2 Utility 1 | . . . . . 1 Weapon 1 | . . . . . 1 Parts Attached 25 | 7 7 1 1 . 9 Power 3 | 1 2 . . . . Engine 3 | 1 2 . . . . Core . | . . . . . . Reactor . | . . . . . . Propulsion 8 | 2 2 . . . 4 Treads . | . . . . . . Leg . | . . . . . . Wheel 8 | 2 2 . . . 4 Hover . | . . . . . . Flight . | . . . . . . Utility 6 | 2 2 . 1 . 1 Device 3 | 1 1 . . . 1 Storage 3 | 1 1 . 1 . . Processor . | . . . . . . Hackware . | . . . . . . Protection . | . . . . . . Artifact . | . . . . . . Weapon 8 | 2 1 1 . . 4 Energy Gun 6 | 2 . . . . 4 Energy Cannon 2 | . 1 1 . . . Ballistic Gun . | . . . . . . Ballistic Cannon . | . . . . . . Launcher . | . . . . . . Special Weapon . | . . . . . . Impact Weapon . | . . . . . . Slashing Weapon . | . . . . . . Piercing Weapon . | . . . . . . Special Melee Weapon . | . . . . . . Unidentified Prototypes . | . . . . . . Parts Lost 8 | . 2 . . . 6 Power . | . . . . . . Propulsion 4 | . 2 . . . 2 Utility 1 | . . . . . 1 Weapon 3 | . . . . . 3 Highest Loss Streak 5 | . 2 . . . 5 To Critical Strikes . | . . . . . . Average Backups 16 | 1 10 19 21 23 20 Power 1 | . 1 2 1 2 2 Propulsion 2 | . . 3 3 4 1 Utility 4 | . 3 3 5 7 7 Weapon 7 | . 4 10 9 10 9 Tool/Special . | . . . . . . Unused Backups 17 | . 1 2 . . 14 Power 3 | . . . . . 3 Propulsion . | . . . . . . Utility 6 | . . . . . 6 Weapon 8 | . 1 2 . . 5 Tool/Special . | . . . . . . Average Slot Usage (%) 93 | . 99 100 88 85 84 Engine 13 | . 14 14 14 14 9 Wheel 28 | . 27 28 28 28 35 Device 8 | . 14 14 3 . 7 Storage 13 | . 14 14 14 14 9 Energy Gun 7 | . 14 2 . . 21 Energy Cannon 19 | . 13 25 28 28 2 Peak Build Rating 24 | 7 9 10 11 11 24 Average Rating 10 | 4 7 9 10 11 22 On Entrance 8 | . 7 9 10 11 11 Avg Prop Armor Cover (%) . | . . . . . . Naked Turns . | . . . . . . Heaviest Build 220 | 12 48 50 209 209 220 Greatest Support 40 | 20 20 20 20 20 40 Greatest Overweight (x) 10 | . 4 2 10 10 6 Average Overweight (x) 3 | . 1 2 6 10 5 Largest Inventory Capacity 35 | 8 20 20 35 35 35 Average Capacity 25 | 7 19 20 31 35 35 Most Carried 25 | 4 20 20 24 25 24 Average Carried 17 | 1 10 19 21 24 21 Final Capacity 35 | 8 20 20 35 35 35 Final Carried 25 | 3 20 20 24 25 19 Class Distribution -------------------- 57% | Mutant 34% | Hauler-Mutant 7% | Hauler-Skirmisher Dominant Class ---------------- Mutant | -10/Materials Mutant | -10/Mines Hauler-Mutant | -10/Exiles Hauler-Mutant | -9/Mines Hauler-Skirmisher | -8/Materials Resources | -11 -10 -10 -10 -9 -8 ----------- Run | Yrd Mat Min Exi Min Mat Matter Collected 614 | 270 260 10 . 10 64 Remotely . | . . . . . . Salvage Created 871 | 92 564 17 . . 198 Parts 65 | 7 39 3 . . 16 Haulers Intercepted 1 | . . . . . 1 Recyclers Shooed 1 | . 1 . . . . Parts Field Recycled . | . . . . . . Retrieved Matter . | . . . . . . Parts Self-Destructed . | . . . . . . Prevented . | . . . . . . Parts Restored . | . . . . . . Kills | -11 -10 -10 -10 -9 -8 ------- Run | Yrd Mat Min Exi Min Mat Combat Hostiles Destroyed 15 | . 13 . . . 2 Guns 9 | . 7 . . . 2 Cannons 6 | . 6 . . . . Classes Destroyed 8 | 1 6 . . . 1 Worker 3 | . 3 . . . . Builder 2 | . 1 . . . 1 Tunneler 5 | 4 . 1 . . . Hauler 1 | . . . . . 1 Recycler 2 | . 2 . . . . Watcher 4 | . 2 . . . 2 Swarmer 10 | . 9 . . . 1 Grunt 5 | . 4 . . . 1 Best Kill Streak 5 | 4 5 1 . . 3 Combat Bots Only 5 | . 5 . . . 2 Max Kills in Single Turn 2 | 2 2 1 . . 2 Gunslinging . | . . . . . . Exploded . | . . . . . . Melee . | . . . . . . Uniques/NPCs Destroyed . | . . . . . . Combat | -11 -10 -10 -10 -9 -8 -------- Run | Yrd Mat Min Exi Min Mat Hostile Shots Fired 113 | . 45 . . . 68 Missed 27 | . 8 . . . 19 Hits 86 | . 37 . . . 49 Projectile 86 | . 37 . . . 49 Critical Strikes 3 | . 1 . . . 2 Damage Taken 1353 | 28 359 . . 27 939 Core 218 | . 116 . . . 102 Absorbed by Shields . | . . . . . . Core Remaining (%) 76 | 100 . . . 53 . Volleys Fired 58 | 3 44 1 . . 10 Largest 3 | 2 2 2 . . 3 Hottest 135 | 80 100 100 . . 135 Shots Fired 118 | 6 88 2 . . 22 Gun 73 | 6 44 1 . . 22 Cannon 45 | . 44 1 . . . Launcher . | . . . . . . Special . | . . . . . . Kinetic . | . . . . . . Thermal 93 | 3 88 2 . . . Explosive . | . . . . . . Electromagnetic 25 | 3 . . . . 22 Robot Hit Streak 8 | 5 8 2 . . 6 Robot Miss Streak 4 | 1 3 . . . 4 Penetration Max . | . . . . . . Secondary Targets . | . . . . . . Shots Hit Robots 69 | 5 48 1 . . 15 Core Hits 39 | 4 24 1 . . 10 Critical Kills . | . . . . . . Critical Parts Destroyed . | . . . . . . Critical Strikes . | . . . . . . Melee Attacks . | . . . . . . Impact . | . . . . . . Slashing . | . . . . . . Piercing . | . . . . . . Sneak Attacks . | . . . . . . Combat Hostiles . | . . . . . . Follow-up Attacks . | . . . . . . Damage Inflicted 1113 | 140 699 10 . . 264 Guns 592 | 62 298 10 . . 222 Cannons 401 | . 401 . . . . Explosions 120 | 78 . . . . 42 Melee . | . . . . . . Ramming . | . . . . . . Kinetic . | . . . . . . Thermal 851 | 100 699 10 . . 42 Explosive . | . . . . . . Electromagnetic 262 | 40 . . . . 222 Impact . | . . . . . . Slashing . | . . . . . . Piercing . | . . . . . . Highest Corruption . | . . . . . . Average Corruption . | . . . . . . Corruption Purged . | . . . . . . Corruption Blocked . | . . . . . . Overload Shots . | . . . . . . Overflow Damage . | . . . . . . Projectiles . | . . . . . . Explosions . | . . . . . . Melee . | . . . . . . Knockbacks . | . . . . . . Impact . | . . . . . . Kinetic . | . . . . . . Secondary . | . . . . . . Self-Inflicted Damage 50 | 28 . . . . 22 Shots 2 | 1 . . . . 1 Rammed . | . . . . . . Targets Rammed . | . . . . . . Kicked . | . . . . . . Crushed . | . . . . . . Highest Temperature 202 | 68 99 9 . . 202 Average Temperature 37 | 31 22 6 . . 91 Received Heat Transfer 261 | . 108 . . . 153 Siege Activations . | . . . . . . Martial Activations . | . . . . . . Shielding Activations . | . . . . . . Robots Disrupted . | . . . . . . Combat Hostiles . | . . . . . . Robots Corrupted . | . . . . . . Combat Hostiles . | . . . . . . Parts Fried . | . . . . . . Impact Corruptions . | . . . . . . Robots Melted . | . . . . . . Combat Hostiles . | . . . . . . Parts Melted 4 | . 4 . . . . Heat Transferred 1651 | 50 1526 25 . . 50 Parts Sabotaged . | . . . . . . Parts Stolen . | . . . . . . Parts Stripped . | . . . . . . Power Chain Reactions 2 | 1 . . . . 1 Alert | -11 -10 -10 -10 -9 -8 ------- Run | Yrd Mat Min Exi Min Mat Maximum Alert Level . | . . . . . . Low Security (%) 100 | 100 100 100 . 100 100 Level 1 . | . . . . . . Level 2 . | . . . . . . Level 3 . | . . . . . . Level 4 . | . . . . . . Level 5 . | . . . . . . High Security . | . . . . . . Max Security . | . . . . . . Peak Influence 153 | 20 153 16 . . 70 Initial 16 | . 6 16 . . . Average 27 | 3 54 1 . . 7 Influence Increases 581 | 20 427 5 . . 129 Destroy 0b10 Robot/C 320 | . 260 . . . 60 Destroy 0b10 Robot/NC 85 | 20 40 5 . . 20 Destroy Leader 90 | . 64 . . . 26 Allied During Kill 4 | . . . . . 4 Successful Hack 17 | . 17 . . . . Disable Machine 15 | . 15 . . . . Destroy Structure 5 | . 1 . . . 4 Lose Combat Pursuer 45 | . 30 . . . 15 Influence Decreases 581 | 10 393 49 . . 129 Entered New Map 32 | . 4 28 . . . Time Decay 338 | 10 267 21 . . 40 Lost Part 78 | . 20 . . . 58 Lost Ally 31 | . . . . . 31 Purge Threat 102 | . 102 . . . . Squads Dispatched 8 | . 3 1 . . 4 Investigation 2 | . 1 1 . . . Extermination . | . . . . . . Reinforcement 6 | . 2 . . . 4 Assault . | . . . . . . Garrison . | . . . . . . Intercept . | . . . . . . Searches Triggered . | . . . . . . Construction Impeded 1 | . . . . . 1 Haulers Reinforced . | . . . . . . Active Scanning Responses . | . . . . . . Cargo Convoy Interrupts . | . . . . . . Stealth | -11 -10 -10 -10 -9 -8 --------- Run | Yrd Mat Min Exi Min Mat Distress Signals 2 | . . . . . 2 Communications Jammed . | . . . . . . Distress Signals . | . . . . . . Times Spotted 39 | . 22 . . . 17 Peak Tracking Total 7 | . 6 . . . 7 Tactical Retreats 2 | . 1 . . . 1 Traps | -11 -10 -10 -10 -9 -8 ------- Run | Yrd Mat Min Exi Min Mat Traps Triggered . | . . . . . . Indirectly . | . . . . . . Trap Hack Attempts . | . . . . . . Triggered . | . . . . . . Disarmed . | . . . . . . Reprogrammed . | . . . . . . Reused . | . . . . . . Traps Extracted . | . . . . . . Installed 1 | . . . . 1 . Triggered . | . . . . . . Machines | -11 -10 -10 -10 -9 -8 ---------- Run | Yrd Mat Min Exi Min Mat Machines Disabled 1 | . 1 . . . . Max in Single Turn 1 | . 1 . . . . Machines Repaired . | . . . . . . Machines Dismantled . | . . . . . . Machines Sabotaged . | . . . . . . Overloaded Fab Kills . | . . . . . . Hacking | -11 -10 -10 -10 -9 -8 --------- Run | Yrd Mat Min Exi Min Mat Machines Accessed 10 | . 6 1 2 1 . Terminals 6 | . 6 . . . . Fabricators . | . . . . . . Repair Stations . | . . . . . . Recycling Units . | . . . . . . Scanalyzers . | . . . . . . Garrison Access . | . . . . . . Total Hacks 19 | . 15 1 2 1 . Successful 12 | . 8 1 2 1 . Failed 7 | . 7 . . . . Catastrophic 2 | . 2 . . . . Database Lockouts . | . . . . . . Manual 13 | . 12 . 1 . . Terminals 15 | . 15 . . . . Fabricators . | . . . . . . Repair Stations . | . . . . . . Recycling Units . | . . . . . . Scanalyzers . | . . . . . . Garrison Access . | . . . . . . Terminal Hacks 8 | . 4 1 2 1 . Record 1 | . . . 1 . . Part Schematic 1 | . 1 . . . . Robot Analysis 1 | . 1 . . . . Open Door 2 | . . 1 . 1 . Unreport Threat 1 | . 1 . . . . Reinforcement Status 1 | . 1 . . . . Proto ID Catalog 1 | . . . 1 . . Fabricator Hacks . | . . . . . . Repair Station Hacks . | . . . . . . Recycling Unit Hacks . | . . . . . . Scanalyzer . | . . . . . . Garrison Access Hacks . | . . . . . . Unauthorized Hacks 4 | . 4 . . . . Terminals 4 | . 4 . . . . Botnet 4 | . 4 . . . . Fabricators . | . . . . . . Repair Stations . | . . . . . . Recycling Units . | . . . . . . Scanalyzers . | . . . . . . Garrison Access . | . . . . . . Data Cores Recovered . | . . . . . . Used . | . . . . . . Hacking Detections 6 | . 6 . . . . Full Trace Events 1 | . 1 . . . . Feedback Events . | . . . . . . Feedback Blocked . | . . . . . . Robot Schematics Acquired . | . . . . . . Robots Built . | . . . . . . Authchips . | . . . . . . Time . | . . . . . . Total Robot Build Rating . | . . . . . . Part Schematics Acquired 1 | . 1 . . . . Parts Built . | . . . . . . Authchips . | . . . . . . Time . | . . . . . . Total Part Build Rating . | . . . . . . Part Studies Acquired . | . . . . . . Parts Repaired . | . . . . . . Time . | . . . . . . Parts Recycled . | . . . . . . Recycled Matter . | . . . . . . Retrieved Matter . | . . . . . . Retrieved Components . | . . . . . . Parts Scanalyzed . | . . . . . . Part Schematics Acquired . | . . . . . . Parts Damaged . | . . . . . . Bothacking | -11 -10 -10 -10 -9 -8 ------------ Run | Yrd Mat Min Exi Min Mat Used RIF Installer . | . . . . . . Robots Hacked . | . . . . . . Non-combat . | . . . . . . Combat . | . . . . . . Robot Hacks Applied . | . . . . . . Relay Couplers Released . | . . . . . . Fabnet Peak Effective % . | . . . . . . Robots Rewired . | . . . . . . Allies Hacked . | . . . . . . Hacks Repelled . | . . . . . . Allies | -11 -10 -10 -10 -9 -8 -------- Run | Yrd Mat Min Exi Min Mat Total Allies 3 | . . . . 3 . Largest Group 3 | . . . . 3 3 Highest-Rated Group 40 | . . . . 40 40 Highest-Rated Ally 16 | . . . . 16 16 Total Orders . | . . . . . . Ally Attacks 18 | . . . . . 18 Total Damage 224 | . . . . . 224 Kills 1 | . . . . . 1 Allies Corrupted . | . . . . . . Allies Melted . | . . . . . . Intel | -11 -10 -10 -10 -9 -8 ------- Run | Yrd Mat Min Exi Min Mat Active Infowar (turns) 52 | 5 46 . . . 1 Seismic 51 | 5 46 . . . . Cloaking 1 | . . . . . 1 Robot Analysis Total 1 | . 1 . . . . Derelict Logs Recovered 1 | . . 1 . . . Drone Launches . | . . . . . . Drone Recoveries . | . . . . . . Exploration | -11 -10 -10 -10 -9 -8 ------------- Run | Yrd Mat Min Exi Min Mat Turns Passed 2429 | 65 864 299 636 321 244 Spaces Moved 1500 | 56 617 250 339 137 101 Core 8 | 8 . . . . . Treads . | . . . . . . Legs . | . . . . . . Wheels 1492 | 48 617 250 339 137 101 Hover . | . . . . . . Flight . | . . . . . . Fastest Speed 50 | 50 80 110 80 230 155 Average Speed 138 | 75 108 110 181 230 155 Slowest Speed 230 | 80 140 110 230 230 170 Overloaded Moves . | . . . . . . Propulsion Burnouts . | . . . . . . Robots Hopped . | . . . . . . Potential Cave-ins . | . . . . . . Cave-ins Triggered . | . . . . . . Exploration Rate (%) 47 | 2 98 54 70 41 20 Regions Visited 5 Branch Regions 3 Pre-discovered Areas 2 | . . 1 1 . . Known Exits Taken . | . . . . . . Unknown Exits Taken 5 | 1 1 1 1 1 . Scrap Searched 2 | . . 1 . 1 . Spaces Dug . | . . . . . . Terrain Destroyed 7 | 3 . . . . 4 Melee . | . . . . . . Projectile . | . . . . . . AOE 7 | 3 . . . . 4 Terrain Rammed . | . . . . . . Walls Destroyed . | . . . . . . Machines Disabled . | . . . . . . Actions | -11 -10 -10 -10 -9 -8 --------- Run | Yrd Mat Min Exi Min Mat Total 1740 | 69 724 273 361 144 169 Wait 99 | . 31 14 . 6 48 Move 1495 | 55 616 249 338 136 101 Hop . | . . . . . . Pick Up 50 | 4 21 4 19 1 1 Fast Attach 7 | 6 . . 1 . . Attach 10 | 1 2 . . . 7 Detach . | . . . . . . Swap 8 | . 5 1 . . 2 Drop 12 | . 5 4 3 . . Fire 58 | 3 44 1 . . 10 Melee . | . . . . . . Ram . | . . . . . . Kick . | . . . . . . Crush . | . . . . . . Escape Stasis . | . . . . . . Rewire . | . . . . . . Trap 1 | . . . . 1 . Miscellaneous . | . . . . . . Route ------- -11/Scrapyard -10/Materials (discovered 4 exits: [*Mat x3] / *Min) -10/Mines (discovered 2 exits: [*Mat] / *Exi) -10/Exiles (discovered 2 exits: *Min x2) -9/Mines -8/Materials (discovered 1 exit: Fac) History --------- Turn | Location | Event 33 | -11/Scrapyard | Discovered new exit (range 12) 66 | -11/Scrapyard | Entered Materials 304 | -10/Materials | Build established: Mutant 348 | -10/Materials | Discovered new exit (range 13) 477 | -10/Materials | Discovered new exit (range 15) 724 | -10/Materials | Discovered new exit (range 9) 763 | -10/Materials | Discovered new exit (range 16) 930 | -10/Materials | Entered Mines 931 | -10/Mines | Learned location of Storage (-8) 956 | -10/Mines | Learned 4 Materials zone layouts 1043 | -10/Mines | Found a damaged Exp. Sensor Array with a note attached 1082 | -10/Mines | Discovered new exit (range 10) 1099 | -10/Mines | Met a Derelict shopkeep closing up shop 1224 | -10/Mines | Deemed a non-threat by the Exiles lab entrance 1224 | -10/Mines | Discovered new exit (range 5) 1229 | -10/Mines | Entered Exiles 1246 | -10/Exiles | Discovered new exit (range 15) 1259 | -10/Exiles | Met 8R-AWN 1276 | -10/Exiles | Met EX-HEX 1325 | -10/Exiles | Met EX-DEC 1345 | -10/Exiles | Learned location of Zion (-7) 1549 | -10/Exiles | Met EX-BIN 1581 | -10/Exiles | Aligned with FarCom system 1583 | -10/Exiles | Given EX-Vault access code 1638 | -10/Exiles | Opened EX-Vault 1654 | -10/Exiles | Found Cloak of Protection 1686 | -10/Exiles | Build established: Hauler-Mutant 1697 | -10/Exiles | Warned to stay clear of 0b10 Research branches 1839 | -10/Exiles | Discovered new exit (range 14) 1865 | -10/Exiles | Left Exiles lab with Cloak of Protection 1865 | -10/Exiles | Entered Mines 1919 | -9/Mines | Assembled infested the area 1924 | -9/Mines | Assisted by a Guerilla fighting off Assembled 1941 | -9/Mines | Found a hidden stash of uninstalled traps 2082 | -9/Mines | Assisted by bots powering up and referring to "LRC-V3" 2154 | -9/Mines | Discovered new exit (range 5) 2176 | -9/Mines | Met a Derelict who couldn't figure out how to use a Trap Extractor 2186 | -9/Mines | Entered Materials 2186 | -8/Materials | Accompanied by 3 allies 2186 | -8/Materials | Evolved 4 slots: Propulsion x2, Utility x1, Weapon x1 2187 | -8/Materials | Identified exit to Factory 2377 | -8/Materials | Lost 4 allies 2430 | -8/Materials | Self-destructed Last Messages --------------- 02412_ The unstable cave ceiling collapses. 02413_ K-01 Serf collects debris. 02413_ U-05 Engineer builds a Wall. 02414_ R-06 Scavenger collects Wheel. 02414_ U-05 Engineer builds a Wall. 02415_ EM Shotgun destroyed. 02416_ U-05 Engineer builds a Wall. 02416_ K-01 Serf collects debris. 02417_ R-06 Scavenger collects Welding Torch. 02417_ U-05 Engineer builds a Wall. 02418_ The unstable cave ceiling collapses. 02419_ R-06 Scavenger collects Lgt. Nuclear Core. 02419_ Wheel destroyed. 02420_ The unstable cave ceiling collapses. 02420_ K-01 Serf collects debris. 02421_ U-05 Engineer lays Concrete. 02422_ U-05 Engineer builds a Wall. 02422_ R-06 Scavenger collects Particle Gun. 02422_ U-05 Engineer lays Concrete. 02423_ The unstable cave ceiling collapses. Map ----- +----------------------------------------------------+ | ????????????????????????##!%! #?????????########## | | ???????????????###########=! %#????????? T # | | ????????????? #????????? # | | ????????????????###### #????????? # | | ???????????????? # #######??? # | | ????????????????! + #??? # | | ?????????????????????# #??? # | | ?????????????????????# +??? # | | ?????????????????????# #?? = # | | ?????????????????????+ | [ #?? # | | ?????????????????????# ####/#####? # | | ?????????????????????#k r#!%= = # # | | ?????????????????????# H## # # | | ????????????????????## #??###### ### | | ???????????????###### ##??????###?# | | ????????????g??? ##??????????# | | ?????????????g?? #??????????# | | ???????????????? g #??????????# | | ???????????????? w #g #??????????# | | ???????????????? #??????????# | | ?????????????????#### #??????????? | | ???????????????######## ## # #??????????? | | ???????????????# ! ### #??????????? | | ???????????????# ### ##??????????? | | ???????????????# = s s w ????? | | ???????????????# @###########"#####??????? | | ???????????????# ""??????????#??????????? | | ???????????? a T"#????????????????????? | | ??????????? ""#????????????????????? | | ??????????? ###????????????????????? | | ???????????? #??????????????????????? | | ???????????? ########??????????????????????? | | ????????????####+#???????????????????????????????? | | ?????????????????????????????????????????????????? | | ?????????????????????????????????????????????????? | | ?????????????????????????????????????????????????? | | ?????????????????????????????????????????????????? | | ?????????????????????????????????????????????????? | | ?????????????????????????????????????????????????? | | ?????????????????????????????????????????????????? | | ?????????????????????????????????????????????????? | | ?????????????????????????????????????????????????? | | ?????????????????????????????????????????????????? | | ?????????????????????????????????????????????????? | | ?????????????????????????????????????????????????? | | ??????????????? # #????????# ?????????? | | ??????????????? # #????????# ?????????? | | ??????????????? # #????????# ?????????? | | ???????????????####+##########???????## ?????????? | | ??????????????? # # ########### ?????????? | +----------------------------------------------------+ Best States ------------- Heat Dissipation 35 Energy Generation 10 Energy Capacity 125 Matter Stores 300 Matter Capacity 300 Sight Range 16 Terrain Scan Density 10 Evasion (%) 44 Item Schematics ----------------- Huge Storage Unit | -10/Materials | Hacked Robot Schematics ------------------ None Fabricated ------------ Nothing Repaired ---------- Nothing Studied --------- None Alien Tech Used ----------------- None Achievements -------------- None Challenges ------------ None Game ------ Seed SiegeAntimissileForcewell Manual? 0 Play Time 00:16:25 Cumulative 203.6 hours Start 2026.07.23 @ 20:42:38 End 2026.07.23 @ 20:59:30 Sessions 3 Manual Loads 0 Difficulty Rogue Special Mode None Game No. 263 Rogue 263 Adventurer 0 Explorer 0 Win Type - Total 4 Types 4/0/0/0/0/0/0/0/0/0 Lore% 79 Gallery% 61 Achievement% 48 Wizard Run 0 Options --------- Layout 0 ASCII 0 Keyboard 0 Movement Numpad Keybinds 0 Fullscreen 1 Font 18/Terminus Map View 76x50 Zoom Use 0% Tactical HUD 1 Map Filters NONE Filters NONE Steam 1 RUN: c3d11008-bf60-4b08-86a1-7f14af9a07ca